[Event "German-ch Blitz Women 2022"]
[Site "Magdeburg"]
[Date "2022.08.13"]
[Round "20.7"]
[White "Falke, Ornella"]
[Black "Zhou, Lepu Coco"]
[Result "0-1"]
[ECO "B40"]
[WhiteElo "1912"]
[BlackElo "1986"]
[Annotator "TA"]
[PlyCount "64"]
[EventDate "2022.08.10"]
[EventType "tourn"]
[EventCountry "GER"]
[SourceTitle "playchess.com"]
[Source "ChessBase"]
[SourceQuality "1"]
[TimeControl "180+2"]

{[%evp 11,64,18,11,-7,70,55,67,73,63,61,64,41,51,51,84,71,75,66,99,58,87,85,126,119,129,131,139,143,156,99,120,121,166,-321,-293,-816,-675,-677,-674,-767,-785,-713,-672,-628,-533,-708,-697,-703,-686,-687,-612,-4139,-2997,-5841,-5381]} 1. e4 {[%emt 0:00:02]} c5 {[%emt 0:00:01]} 2. Nf3 {[%emt 0:00:02]} e6 {[%emt 0:00:01]} 3. d4 {[%emt 0:00:02]} cxd4 {[%emt 0:00:01]} 4. Nxd4 {[%emt 0:00:01]} Nf6 {[%emt 0:00:01]} 5. Nc3 {[%emt 0:00:02]} Nc6 {[%emt 0:00:00]} 6. a3 {[%emt 0:00:10]} d5 {[%emt 0:00:07]} 7. Bg5 {[%emt 0:00:26] aiming for exd5. B45: Sicilian Four Knights.} dxe4 {[%emt 0:00:09]} (7... h6 $11 8. Bf4 Be7) 8. Nxc6 $14 {[%emt 0:00:10][%csl Gc6][%cal Rd1d8]} Qxd1+ {[%emt 0:00:04]} 9. Rxd1 {[%emt 0:00:01][%csl Gc6][%cal Rd1d8] White is slightly better.} bxc6 {[%emt 0:00:02] [#]} 10. Nxe4 $1 {[%emt 0:00:10]} Be7 {[%emt 0:00:16] [#]} 11. Nxf6+ $146 {[%emt 0:00:07][%mdl 128] White mounts an attack.} ({Predecessor:} 11. Nd6+ Kf8 12. Bc4 h6 13. Bh4 Nd5 14. Bxe7+ Kxe7 15. Nxc8+ Raxc8 16. O-O Rhd8 17. g3 {1-0 (73) Duncanson,H (2141)-Tucker,A (1943) Douglas 2005}) 11... gxf6 {[%emt 0:00:02]} 12. Be3 {[%emt 0:00:02]} Bb7 {[%emt 0:00:13]} 13. f3 {[%emt 0:00:16]} f5 {[%emt 0:00:16]} 14. Kf2 {[%emt 0:00:13]} Bf6 {[%emt 0:00:04]} 15. b3 {[%emt 0:00:06]} a5 {[%emt 0:00:20]} 16. a4 {[%emt 0:00:20]} O-O {[%emt 0:00:19]} 17. Bc4 {[%emt 0:00:08]} Rfd8 {[%emt 0:00:07]} 18. Bb6 {[%emt 0:00:03]} Rxd1 {[%emt 0:00:10]} 19. Rxd1 {[%emt 0:00:01]} Ba6 {[%emt 0:00:15][%cal Oc6c5]} 20. Rd6 {[%emt 0:00:40]} (20. Be2 $142) 20... Bxc4 {[%emt 0:00:06]} 21. bxc4 $16 {[%emt 0:00:01][%mdl 4096] Endgame KRB-KRB} Ra6 {[%emt 0:00:04]} 22. Bc5 {[%emt 0:00:28][%mdl 8192] [#]} (22. c5 $18 {and all is fine.}) 22... Be7 $19 {[%emt 0:00:07]} 23. Rxc6 $2 (23. Ke3) 23... Rxc6 {[%emt 0:00:06] Black is clearly winning.} 24. Bxe7 {[%emt 0:00:15]} Rxc4 {KR-KB} 25. Bd8 Rxa4 {[%emt 0:00:04]} 26. Ke3 {[%emt 0:00:01]} Ra2 {[%emt 0:00:08]} 27. Kd3 {[%emt 0:00:02]} a4 {[%emt 0:00:03]} 28. Kc3 {[%emt 0:00:01]} Ra1 {[%emt 0:00:07]} 29. Bf6 {[%emt 0:00:01]} Rg1 {[%emt 0:00:06]} 30. Kb4 {[%emt 0:00:02]} Rxg2 {[%emt 0:00:03]} 31. Kxa4 {[%emt 0:00:04]} Rxc2 {[%emt 0:00:02]} 32. h4 {[%emt 0:00:02]} Rf2 {[%emt 0:00:03] Weighted Error Value: White=1.06/Black=0.23 (precise)} 0-1

[Event "German-ch Blitz Women 2022"]
[Site "Magdeburg"]
[Date "2022.08.13"]
[Round "20.8"]
[White "Kosovska, Olena"]
[Black "Nikolaeva, Mariya A"]
[Result "1-0"]
[ECO "C88"]
[WhiteElo "1831"]
[BlackElo "1309"]
[Annotator "NA RC COMBH"]
[PlyCount "77"]
[EventDate "2022.08.10"]
[EventType "tourn"]
[EventCountry "GER"]
[SourceTitle "playchess.com"]
[Source "ChessBase"]
[SourceQuality "1"]
[TimeControl "180+2"]

1. e4 {[%emt 0:00:01]} e5 {[%emt 0:00:00]} 2. Nf3 {[%emt 0:00:01]} Nc6 {[%emt 0:00:01]} 3. Bb5 {[%emt 0:00:01]} a6 {[%emt 0:00:01]} 4. Ba4 {[%emt 0:00:01]} Nf6 {[%emt 0:00:02]} 5. O-O {[%emt 0:00:02]} b5 {[%emt 0:00:01]} 6. Bb3 {[%emt 0:00:01]} Be7 {[%emt 0:00:01]} 7. Re1 {[%emt 0:00:02]} d6 {[%emt 0:00:00]} 8. a4 {[%emt 0:00:02]} Rb8 {[%emt 0:00:05]} 9. c3 {[%emt 0:00:05]} Na5 {[%emt 0:00:06]} 10. Bc2 {[%emt 0:00:05]} c5 {[%emt 0:00:01]} 11. d4 {[%emt 0:00:08]} Qc7 {[%emt 0:00:01]} 12. Be3 {[%emt 0:00:18]} c4 {[%emt 0:00:22]} 13. axb5 {[%emt 0:00:08]} axb5 {[%emt 0:00:08]} 14. dxe5 {[%emt 0:00:01]} dxe5 {[%emt 0:00:02]} 15. Nxe5 {[%emt 0:00:36]} Qxe5 {[%emt 0:00:04]} 16. Rxa5 {[%emt 0:00:01]} O-O {[%emt 0:00:04]} 17. Bd4 {[%emt 0:00:07]} Qc7 {[%emt 0:00:04]} 18. Ra7 {[%emt 0:00:02]} Rb7 {[%emt 0:00:04]} 19. Ra1 {[%emt 0:00:17]} Rd8 {[%emt 0:00:16]} 20. e5 {[%emt 0:00:05]} Ne8 {[%emt 0:00:32]} 21. Nd2 {[%emt 0:00:17]} Be6 {[%emt 0:00:08]} 22. Qh5 {[%emt 0:00:12]} g6 {[%emt 0:00:06]} 23. Qh6 {[%emt 0:00:12]} Bf8 {[%emt 0:00:03]} 24. Qe3 {[%emt 0:00:03]} Ng7 {[%emt 0:00:07]} 25. Ne4 {[%emt 0:00:09]} Nf5 {[%emt 0:00:09]} 26. Nf6+ {[%emt 0:00:02]} Kg7 {[%emt 0:00:01]} 27. Bxf5 {[%emt 0:00:14]} Bxf5 {[%emt 0:00:02]} 28. e6 {[%emt 0:00:04]} Qb8 {[%emt 0:00:40]} 29. Nd7+ {[%emt 0:00:04]} Kg8 {[%emt 0:00:03]} 30. Nxb8 {[%emt 0:00:02]} Rbxb8 {[%emt 0:00:02]} 31. Qe5 {[%emt 0:00:02]} Rxd4 {[%emt 0:00:06]} 32. exf7+ {[%emt 0:00:04]} Kxf7 {[%emt 0:00:02]} 33. Qxd4 {[%emt 0:00:05]} Be7 {[%emt 0:00:07]} 34. Ra7 {[%emt 0:00:03]} Re8 {[%emt 0:00:04]} 35. g4 {[%emt 0:00:07]} Bd3 {[%emt 0:00:04]} 36. Qf4+ {[%emt 0:00:05]} Kg8 {[%emt 0:00:03]} 37. Rexe7 {[%emt 0:00:03]} Rf8 {[%emt 0:00:11]} 38. Rg7+ {[%emt 0:00:03]} Kh8 {[%emt 0:00:03]} 39. Qxf8# {[%emt 0:00:02]} 1-0

[Event "German-ch Blitz Women 2022"]
[Site "Magdeburg"]
[Date "2022.08.13"]
[Round "20.9"]
[White "Leveikina, Jevgenija"]
[Black "Schulze, Lara"]
[Result "1-0"]
[ECO "A46"]
[WhiteElo "2061"]
[BlackElo "2292"]
[Annotator "TA"]
[PlyCount "83"]
[EventDate "2022.08.10"]
[EventType "tourn"]
[EventCountry "GER"]
[SourceTitle "playchess.com"]
[Source "ChessBase"]
[SourceQuality "1"]
[TimeControl "180+2"]

{[%evp 15,83,-4,0,-13,-11,-24,0,0,0,0,-6,-11,-4,0,0,-22,-20,-25,-20,-38,-12,-85,-94,-111,-108,-123,-57,-49,0,-86,85,-84,121,-101,22,20,180,171,210,0,199,205,204,204,205,209,211,204,204,0,0,0,0,0,0,0,6095,2892,29980,29981,29981,29981,29981,29981,29981,29982,29982,29983,29983,29984]} 1. d4 {[%emt 0:00:01]} Nf6 {[%emt 0:00:02]} 2. Nf3 {[%emt 0:00:00]} e6 {[%emt 0:00:07]} 3. c3 {[%emt 0:00:02]} d5 {[%emt 0:00:03]} 4. Bf4 {[%emt 0:00:01]} Bd6 {[%emt 0:00:02]} 5. Bg3 {[%emt 0:00:00]} O-O {[%emt 0:00:02]} 6. e3 {[%emt 0:00:01]} c5 {[%emt 0:00:01]} 7. Bd3 {[%emt 0:00:01]} Qc7 {[%emt 0:00:01] outshines the older 7...Nc6.} 8. Nbd2 {[%emt 0:00:02]} Nbd7 {[%emt 0:00:02]} 9. O-O {[%emt 0:00:02] D02: 1 d4 d5 2 Nf3 sidelines, including 2...Nf6 3 g3 and 2...Nf6 3 Bf4.} Bxg3 {[%emt 0:00:01]} 10. hxg3 {[%emt 0:00:01]} e5 {[%emt 0:00:00]} 11. dxe5 {[%emt 0:00:02] The position is equal.} Nxe5 {[%emt 0:00:01]} 12. Nxe5 {[%emt 0:00:04]} Qxe5 {[%emt 0:00:01]} 13. Qf3 {[%emt 0:00:06]} Bg4 {[%emt 0:00:14]} 14. Qf4 {[%emt 0:00:02] [#]} Rfe8 $146 {[%emt 0:00:12]} ({Predecessor:} 14... Qxf4 15. gxf4 b6 16. Rfe1 Rfe8 17. Rac1 Rad8 18. f3 Bd7 19. Kf2 Bc6 20. g4 h6 {1-0 (56) Le,T (2485)-Riff,J (2492) Chess.com INT 2017}) 15. Nf3 {[%emt 0:00:19]} Qxf4 {[%emt 0:00:03]} (15... Qe7 {with more complications.} 16. Rfe1 Rad8 17. e4 dxe4 18. Bxe4 Nxe4 19. Qxg4 Qe6) 16. gxf4 {[%emt 0:00:02]} Bxf3 {[%emt 0:00:07]} 17. gxf3 {[%emt 0:00:01]} d4 {[%emt 0:00:09]} 18. e4 {[%emt 0:00:09]} (18. Rfe1 $11) 18... Nh5 $36 {[%emt 0:00:04][%mdl 2048] Black is in control.} 19. f5 {[%emt 0:00:07]} Nf4 {[%emt 0:00:02]} 20. Bc4 {[%emt 0:00:02]} d3 {[%emt 0:00:17]} (20... g6 $17 21. fxg6 hxg6) 21. Kh2 $15 {[%emt 0:00:08]} Rad8 {[%emt 0:00:05]} (21... g5 $1 $15 {should be considered.} 22. fxg6 hxg6) 22. Rad1 {[%emt 0:00:10]} (22. Kg3 $11 Nh5+ 23. Kh4) 22... a6 $2 {[%emt 0:00:14]} (22... g5 $1 $17 {and life is bright.} 23. fxg6 hxg6) 23. a4 $2 {[%emt 0:00:01]} (23. Kg3 $16 Ne2+ 24. Kh4) 23... Kf8 $2 {[%emt 0:00:10]} (23... g5 $1 $17 {stays on course.} 24. fxg6 hxg6) 24. Rd2 $2 {[%emt 0:00:02]} (24. Kg3 $16 {is forced if you want to stay better.} g5 25. fxg6 Nh5+ 26. Kg4 fxg6 27. Rxd3) 24... f6 {[%emt 0:00:31]} (24... g5 $17 25. fxg6 hxg6) 25. Rfd1 $11 {[%emt 0:00:02]} Rd6 $2 {[%emt 0:00:03]} (25... g5 $11) 26. Kg3 $18 {[%emt 0:00:07]} ({Don't blunder} 26. Bxd3 $2 Red8 27. Kg3 Nxd3 $19) 26... Ne2+ {[%emt 0:00:08]} 27. Kh2 $2 {[%emt 0:00:06]} (27. Kg4 $18) 27... Red8 $2 {[%emt 0:00:04]} (27... Nf4 $11) 28. Rxd3 {[%emt 0:00:06]} Rxd3 {[%emt 0:00:03]} 29. Rxd3 {[%emt 0:00:03]} Rxd3 {[%emt 0:00:06]} 30. Bxd3 {[%emt 0:00:01][%mdl 4096] Endgame KB-KN} Nf4 {[%emt 0:00:02]} 31. Bc4 {[%emt 0:00:04] aiming for a5.} g5 {[%emt 0:00:05]} 32. Kg3 $2 {[%emt 0:00:10]} (32. fxg6 $1 $18 Nxg6 33. Kg3) 32... h5 $11 {[%emt 0:00:03]} 33. a5 {[%emt 0:00:05] Bd5 is the strong threat.} Ke7 {[%emt 0:00:03]} 34. Bd5 {[%emt 0:00:15]} Nxd5 {[%emt 0:00:04]} 35. exd5 {[%emt 0:00:01] Strongly threatening c4. KP-KP} c4 $2 {[%emt 0:00:01][%mdl 8192]} (35... Kd6 $11) 36. f4 $18 {[%emt 0:00:11]} gxf4+ {[%emt 0:00:12] [#]} 37. Kh4 $1 {[%emt 0:00:07] White mates.} ({Weaker is} 37. Kxf4 Kd6 $11) 37... Kd6 {[%emt 0:00:00]} 38. Kxh5 {[%emt 0:00:02]} Kxd5 {[%emt 0:00:02]} 39. f3 {[%emt 0:00:09]} Kd6 {[%emt 0:00:15] [#]} 40. Kh6 $1 {[%emt 0:00:12]} Kd7 {[%emt 0:00:12]} 41. Kg7 {[%emt 0:00:06]} Ke7 {[%emt 0:00:01]} 42. Kg6 {[%emt 0:00:04] Weighted Error Value: White=0.39/Black=0.64} 1-0

[Event "German-ch Blitz Women 2022"]
[Site "Magdeburg"]
[Date "2022.08.13"]
[Round "20.10"]
[White "Heil, Marina"]
[Black "Melamed, Tatjana"]
[Result "0-1"]
[ECO "A16"]
[WhiteElo "1926"]
[BlackElo "2380"]
[Annotator "TA"]
[PlyCount "83"]
[EventDate "2022.08.10"]
[EventType "tourn"]
[EventCountry "GER"]
[SourceTitle "playchess.com"]
[Source "ChessBase"]
[SourceQuality "1"]
[TimeControl "180+2"]

{[%evp 19,83,-3,-8,-25,-28,-73,-28,-37,-33,-64,-66,-59,-24,-41,0,-33,0,0,0,0,25,12,48,37,41,35,62,66,56,67,80,-14,0,0,0,-77,-14,0,0,0,0,0,121,133,147,0,85,4,201,-412,63,0,0,0,0,0,0,0,437,0,0,0,0,-29994,-29995,-29995]} 1. c4 {[%emt 0:00:01]} Nf6 {[%emt 0:00:02]} 2. Nc3 {[%emt 0:00:01]} g6 {[%emt 0:00:01]} 3. g3 {[%emt 0:00:01]} Bg7 {[%emt 0:00:01]} 4. Bg2 {[%emt 0:00:01]} O-O {[%emt 0:00:01]} 5. e4 {[%emt 0:00:01]} d6 {[%emt 0:00:01]} 6. d3 {[%emt 0:00:01]} c5 {[%emt 0:00:02]} 7. Nge2 {[%emt 0:00:01]} Nc6 {[%emt 0:00:00]} 8. O-O {[%emt 0:00:03]} a6 {[%emt 0:00:01]} 9. h3 {[%emt 0:00:07]} Rb8 {[%emt 0:00:01]} 10. a4 {[%emt 0:00:02]} Ne8 {[%emt 0:00:01][%cal Bf6e8,Be8c7,Bc7e6,Be6d4][%mdl 32]} 11. Kh2 {[%emt 0:00:06] A36: Symmetrical English vs ...g6: 4 Bg2 Bg7.} Nc7 {[%emt 0:00:01]} 12. Be3 {[%emt 0:00:10]} Ne6 {[%emt 0:00:02]} 13. f4 {[%emt 0:00:04] Black has an edge.} Ned4 {[%emt 0:00:04]} 14. Nd5 {[%emt 0:00:09]} e6 {[%emt 0:00:06]} 15. Ndc3 {[%emt 0:00:02] [#]} f5 $146 {[%emt 0:00:14]} ({Predecessor:} 15... Qb6 16. Rb1 Qb3 17. Rf2 Qxd1 18. Rxd1 Bd7 19. Rb1 Nc2 20. Bd2 N6b4 21. Nc1 Nd4 22. N3a2 Nxa2 23. Nxa2 Bxa4 {0-1 (39) Ryabov,G (1887)-Belyakov,B (2495) Khanty-Mansiysk 2019}) 16. exf5 {[%emt 0:00:23]} gxf5 {[%emt 0:00:01]} 17. Re1 {[%emt 0:00:05]} Kh8 {[%emt 0:00:02]} 18. Bf2 {[%emt 0:00:18]} Bd7 {[%emt 0:00:04]} 19. Nxd4 {[%emt 0:00:05]} Nxd4 {[%emt 0:00:05]} 20. Ne2 $1 {[%emt 0:00:03]} Qf6 {[%emt 0:00:17]} 21. Nxd4 {[%emt 0:00:04]} cxd4 {[%emt 0:00:01]} 22. b4 {[%emt 0:00:11][%cal Bb2b4,Bb4b5][%mdl 32]} Bc6 {[%emt 0:00:01]} 23. b5 {[%emt 0:00:07]} Bxg2 {[%emt 0:00:05]} 24. Kxg2 {[%emt 0:00:01]} e5 {[%emt 0:00:02]} 25. Qd2 {[%emt 0:00:09]} (25. Qf3 $16) 25... Rfe8 {[%emt 0:00:03]} 26. Re2 {[%emt 0:00:11]} e4 {[%emt 0:00:01] And now ...e3 would win.} 27. Qc2 {[%emt 0:00:25]} (27. Qd1 $11) 27... e3 {[%emt 0:00:15]} (27... a5 $17) 28. Be1 $1 $11 {[%emt 0:00:01]} d5 {[%emt 0:00:08]} 29. c5 {[%emt 0:00:04]} Rbc8 {[%emt 0:00:03] Against c6} 30. Qc1 {[%emt 0:00:18]} Qe7 {[%emt 0:00:23] [#]} (30... Rg8 $11 {keeps the balance.}) 31. Rc2 $1 $16 {[%emt 0:00:04]} Rg8 {[%emt 0:00:10]} 32. Rb1 {[%emt 0:00:14]} (32. c6 $16) 32... axb5 {[%emt 0:00:02]} (32... Bh6 $1 $11 33. Qb2 Qf6 34. bxa6 bxa6) 33. axb5 {[%emt 0:00:02]} ({White should play} 33. Rxb5 $16 {Black should prevent a5.} Rge8 34. Rcb2) 33... Ra8 $2 {[%emt 0:00:01]} (33... Bh6 $11 {and Black has nothing to worry.} 34. Qb2 Qf6) 34. Bb4 $4 {[%emt 0:00:07][%mdl 8192] [#]} (34. c6 $18) 34... Bf6 $2 {[%emt 0:00:09]} ({Better is} 34... Bh6 $1 $19 {[%cal Rh6f4] Hoping for ...Bxf4.} 35. Ra1 Qg7) 35. c6 {[%emt 0:00:05]} (35. Qd1 $14) 35... Qg7 $36 {[%emt 0:00:03][%mdl 2048] Black has the initiative.} 36. Be1 {[%emt 0:00:04]} bxc6 37. bxc6 {[%emt 0:00:05] Black must now prevent Rb7.} Bh4 $1 {[%emt 0:00:10][%cal Rh4g3]} 38. Rb7 {[%emt 0:00:06]} Qg6 {[%emt 0:00:08][%mdl 8192]} (38... Qh6 $11 39. Qd1 (39. Kh2 $2 Rxg3 40. Bxg3 Bxg3+ 41. Kg2 Bf2 $19) 39... Rac8) 39. Kh1 $2 {[%emt 0:00:14]} (39. Qb2 $18) 39... Bxg3 {[%emt 0:00:13] ( -> ...Bf2)} 40. Rg2 {[%emt 0:00:02] Inhibits Bf2.} Qh5 {[%emt 0:00:01]} 41. Rxg3 {[%mdl 8192]} (41. Bxg3 $11 Qxh3+ 42. Rh2 Rxg3 43. Rxh3 Rxh3+ 44. Kg2) 41... Rxg3 42. Bxg3 {Weighted Error Value: White=0.73/Black=0.79} 0-1

[Event "German-ch Blitz Women 2022"]
[Site "Magdeburg"]
[Date "2022.08.13"]
[Round "20.11"]
[White "Fock, Sana"]
[Black "Staerk, Elisa"]
[Result "1-0"]
[ECO "B06"]
[WhiteElo "1807"]
[BlackElo "1947"]
[Annotator "TA"]
[PlyCount "73"]
[EventDate "2022.08.10"]
[EventType "tourn"]
[EventCountry "GER"]
[SourceTitle "playchess.com"]
[Source "ChessBase"]
[SourceQuality "1"]
[TimeControl "180+2"]

{[%evp 9,73,89,60,28,58,49,50,52,61,54,61,43,140,-46,-37,-37,-44,-62,-20,-24,0,0,0,-12,-14,-12,0,0,0,0,0,-36,-17,-10,0,0,0,-64,0,0,0,0,0,0,0,0,0,0,0,0,0,-13,0,0,0,0,0,0,0,0,0,0,0,0,0,0]} 1. e4 {[%emt 0:00:01]} g6 {[%emt 0:00:00]} 2. d4 {[%emt 0:00:01][%cal Bd2d4,Bd4d5][%mdl 32]} Bg7 {[%emt 0:00:00]} 3. Nc3 {[%emt 0:00:02]} c5 {[%emt 0:00:01]} 4. Be3 {[%emt 0:00:03]} Nc6 {[%emt 0:00:06]} 5. d5 {[%emt 0:00:17]} Nd4 {[%emt 0:00:04]} 6. Nge2 {[%emt 0:00:09][%cal Re2d4] B06: Modern Defence.} Nxe2 {[%emt 0:00:04]} 7. Bxe2 d6 {[#]} 8. O-O $146 {[%emt 0:00:08] White is slightly better.} ({Predecessor:} 8. Qd2 a6 9. a4 h5 10. a5 Nf6 11. f3 Rb8 12. Na4 Bd7 13. Nb6 O-O 14. O-O {1-0 (50) Swicarz,M (2341)-Yirik,V (1957) Chess.com INT 2020}) 8... Nf6 {[%emt 0:00:02]} 9. f4 {[%emt 0:00:08]} O-O {[%emt 0:00:04]} 10. h3 {[%emt 0:00:26]} e6 {[%emt 0:00:21]} (10... Bd7 $14) 11. Kh2 $2 {[%emt 0:00:11] [#] White is more active.} ({Only move:} 11. dxe6 $16 Bxe6 12. f5 gxf5 13. exf5) 11... exd5 $15 {[%emt 0:00:04]} 12. exd5 {[%emt 0:00:02]} Re8 {[%emt 0:00:07]} 13. Qd2 {[%emt 0:00:10]} Qe7 {[%emt 0:00:04]} (13... Ng4+ $5 14. Bxg4 Bxg4 $17) 14. Bf2 {[%emt 0:00:26]} Bf5 {[%emt 0:00:30][%cal Of6d5]} 15. Rae1 {[%emt 0:00:07]} Qd8 {[%emt 0:00:20]} 16. Bb5 {[%emt 0:00:04]} Bd7 {[%emt 0:00:11]} 17. Rxe8+ {[%emt 0:00:05]} Bxe8 {[%emt 0:00:08]} 18. Bxe8 {[%emt 0:00:04]} Qxe8 {[%emt 0:00:01]} 19. Re1 {[%emt 0:00:02]} Qd7 {[%emt 0:00:01]} 20. Ne4 {[%emt 0:00:15]} Nxe4 {[%emt 0:00:10]} 21. Rxe4 {[%emt 0:00:02]} Re8 {[%emt 0:00:10]} 22. Rxe8+ {[%emt 0:00:10]} Qxe8 $11 {[%emt 0:00:01][%mdl 4096] Endgame KQB-KQB} 23. c3 {[%emt 0:00:01]} (23. b4 $11) 23... f5 {[%emt 0:00:09]} (23... Qe4 $15) 24. Qe3 {[%emt 0:00:07] The position is equal.} Qxe3 {[%emt 0:00:06]} 25. Bxe3 {[%emt 0:00:01] KB-KB} b5 {[%emt 0:00:04]} 26. g4 {[%emt 0:00:06]} Kf7 {[%emt 0:00:03]} 27. Kg3 {[%emt 0:00:01]} a5 {[%emt 0:00:02]} 28. Kf3 {[%emt 0:00:07]} b4 {[%emt 0:00:01]} 29. cxb4 {[%emt 0:00:08]} axb4 {[%emt 0:00:08] [#] ...fxg4+ is the strong threat.} 30. b3 {[%emt 0:00:02]} Bc3 {[%emt 0:00:13]} 31. Bc1 {[%emt 0:00:08]} Kf6 {[%emt 0:00:14]} 32. g5+ {[%emt 0:00:03]} Ke7 {[%emt 0:00:02]} 33. Ke3 {[%emt 0:00:10]} Kd7 {[%emt 0:00:06]} 34. Kd3 {[%emt 0:00:04]} Kc7 {[%emt 0:00:02]} 35. a4 {[%emt 0:00:08]} Bg7 {[%emt 0:00:15]} 36. Be3 {[%emt 0:00:05]} Kb6 {[%emt 0:00:07]} 37. Kc4 {[%emt 0:00:03][%mdl 32768] Weighted Error Value: White=0.21 (precise) /Black=0.10 (very precise) . Sensor Board Error (Ke4/e5)?} 1-0

[Event "German-ch Blitz Women 2022"]
[Site "Magdeburg"]
[Date "2022.08.13"]
[Round "20.12"]
[White "Schuster, Rebekka"]
[Black "Zschischang, Marine"]
[Result "0-1"]
[ECO "C01"]
[WhiteElo "1815"]
[BlackElo "2083"]
[Annotator "NA RC"]
[PlyCount "38"]
[EventDate "2022.08.10"]
[EventType "tourn"]
[EventCountry "GER"]
[SourceTitle "playchess.com"]
[Source "ChessBase"]
[SourceQuality "1"]
[TimeControl "180+2"]

1. e4 e6 2. d4 {[%emt 0:00:00]} d5 3. exd5 exd5 {[%emt 0:00:01]} 4. Bd3 {[%emt 0:00:04]} Nf6 {[%emt 0:00:01]} 5. Bg5 {[%emt 0:00:02]} h6 {[%emt 0:00:02]} 6. Bh4 {[%emt 0:00:01]} Qe7+ {[%emt 0:00:03]} 7. Qe2 {[%emt 0:00:09]} Nbd7 {[%emt 0:00:11]} 8. Nd2 {[%emt 0:00:14]} Qxe2+ {[%emt 0:00:12]} 9. Nxe2 {[%emt 0:00:02]} Bd6 {[%emt 0:00:02]} 10. O-O-O {[%emt 0:00:11]} O-O {[%emt 0:00:07]} 11. Nf3 {[%emt 0:00:11]} Ne4 {[%emt 0:00:05]} 12. Rhf1 {[%emt 0:00:38]} f5 {[%emt 0:00:09]} 13. Nd2 {[%emt 0:00:33]} g5 {[%emt 0:00:09]} 14. f3 {[%emt 0:00:40]} Nxd2 {[%emt 0:00:06]} 15. Rxd2 {[%emt 0:00:01]} gxh4 {[%emt 0:00:03]} 16. f4 {[%emt 0:00:17]} Nf6 {[%emt 0:00:06]} 17. Rf3 {[%emt 0:00:01]} Ne4 {[%emt 0:00:17]} 18. Rd1 {[%emt 0:00:02]} Kh7 {[%emt 0:00:08]} 19. Rdf1 {[%emt 0:00:16]} Rg8 {[%emt 0:00:07]} 0-1